[Event "Live Chess"]
[Site "Chess.com"]
[Date "2024.06.01"]
[Round "-"]
[White "Dhaydon19"]
[Black "JanMur7"]
[Result "1-0"]
[WhiteElo "2666"]
[BlackElo "2314"]
[TimeControl "300"]
[EndTime "13:09:22 PDT"]
[Termination "Dhaydon19 won by resignation"]

1. d4 {[%clk 0:04:58.1]} 1... Nf6 {[%clk 0:04:58.5]} 2. Nf3 {[%clk 0:04:57.7]}
2... d5 {[%clk 0:04:55.7]} 3. g3 {[%clk 0:04:56.8]} 3... e6 {[%clk 0:04:54.1]}
4. Bg2 {[%clk 0:04:56.4]} 4... b6 {[%clk 0:04:51.7]} 5. O-O {[%clk 0:04:55.7]}
5... Bb7 {[%clk 0:04:50.9]} 6. c4 {[%clk 0:04:55]} 6... dxc4 {[%clk 0:04:49.6]}
7. Qa4+ {[%clk 0:04:53.6]} 7... Nbd7 {[%clk 0:04:49]} 8. Qxc4 {[%clk 0:04:53.2]}
8... Be7 {[%clk 0:04:48.2]} 9. Nc3 {[%clk 0:04:52.5]} 9... O-O {[%clk
0:04:46.7]} 10. Rd1 {[%clk 0:04:52.1]} 10... Rc8 {[%clk 0:04:44.2]} 11. Bf4
{[%clk 0:04:46.9]} 11... c5 {[%clk 0:04:39.5]} 12. dxc5 {[%clk 0:04:45.3]} 12...
Bxc5 {[%clk 0:04:38.5]} 13. Qa4 {[%clk 0:04:43.4]} 13... a5 {[%clk 0:04:31.6]}
14. Ne5 {[%clk 0:04:41.3]} 14... Rc7 {[%clk 0:04:24.3]} 15. Nxd7 {[%clk
0:04:21.3]} 15... Rxd7 {[%clk 0:03:54.6]} 16. Bxb7 {[%clk 0:04:18]} 1-0

[Event "Live Chess"]
[Site "Chess.com"]
[Date "2024.06.01"]
[Round "-"]
[White "matt1979"]
[Black "LL220284LL"]
[Result "0-1"]
[WhiteElo "1387"]
[BlackElo "2543"]
[TimeControl "300"]
[EndTime "13:09:31 PDT"]
[Termination "LL220284LL won by resignation"]

1. f4 {[%clk 0:04:58.3]} 1... d6 {[%clk 0:04:59.9]} 2. Nf3 {[%clk 0:04:56.7]}
2... g6 {[%clk 0:04:59.8]} 3. e3 {[%clk 0:04:53.9]} 3... Bg7 {[%clk 0:04:59.3]}
4. Bc4 {[%clk 0:04:47.6]} 4... Nf6 {[%clk 0:04:57.5]} 5. d3 {[%clk 0:04:45.8]}
5... d5 {[%clk 0:04:56.8]} 6. Bb3 {[%clk 0:04:44.2]} 6... c5 {[%clk 0:04:55.6]}
7. O-O {[%clk 0:04:41.5]} 7... Nc6 {[%clk 0:04:55.2]} 8. Ba4 {[%clk 0:04:40.2]}
8... O-O {[%clk 0:04:52.4]} 9. Bxc6 {[%clk 0:04:38.1]} 9... bxc6 {[%clk
0:04:52.3]} 10. Ne5 {[%clk 0:04:36.7]} 10... Qc7 {[%clk 0:04:51.2]} 11. Qe1
{[%clk 0:04:34.7]} 11... Nd7 {[%clk 0:04:49.6]} 12. Nxd7 {[%clk 0:04:30.8]}
12... Bxd7 {[%clk 0:04:49.5]} 13. c3 {[%clk 0:04:29]} 13... Rab8 {[%clk
0:04:46.1]} 14. e4 {[%clk 0:04:23.5]} 14... c4 {[%clk 0:04:39]} 15. d4 {[%clk
0:04:14.7]} 15... dxe4 {[%clk 0:04:37.5]} 16. Qxe4 {[%clk 0:04:12.2]} 16... c5
{[%clk 0:04:34]} 17. Qe3 {[%clk 0:03:51.4]} 17... cxd4 {[%clk 0:04:29.6]} 18.
cxd4 {[%clk 0:03:49.7]} 18... Rfd8 {[%clk 0:04:28.5]} 19. Nc3 {[%clk 0:03:39.5]}
19... Bf5 {[%clk 0:04:27.1]} 20. Ne2 {[%clk 0:03:33.2]} 20... Bd3 {[%clk
0:04:25.1]} 21. Qf3 {[%clk 0:03:24.4]} 21... Bxe2 {[%clk 0:04:17.3]} 22. Qxe2
{[%clk 0:03:23.1]} 22... Bxd4+ {[%clk 0:04:13.2]} 23. Be3 {[%clk 0:03:19]} 23...
Rxb2 {[%clk 0:04:11.7]} 24. Qf3 {[%clk 0:03:07.7]} 24... Bxe3+ {[%clk 0:04:09]}
25. Qxe3 {[%clk 0:03:06.1]} 25... Rdd2 {[%clk 0:04:08.3]} 26. Qf3 {[%clk
0:03:00.6]} 26... c3 {[%clk 0:04:05.1]} 27. f5 {[%clk 0:02:46.1]} 27... Qc5+
{[%clk 0:03:55.8]} 28. Kh1 {[%clk 0:02:44.1]} 28... Rxg2 {[%clk 0:03:49.7]} 29.
Qxg2 {[%clk 0:02:41]} 29... Rxg2 {[%clk 0:03:49.6]} 30. Kxg2 {[%clk 0:02:40.1]}
30... gxf5 {[%clk 0:03:48.5]} 31. Rac1 {[%clk 0:02:33.1]} 31... Qd5+ {[%clk
0:03:45.3]} 32. Rf3 {[%clk 0:02:31.1]} 32... Qxa2+ {[%clk 0:03:44.3]} 33. Kg3
{[%clk 0:02:29.6]} 33... Qd2 {[%clk 0:03:41.6]} 34. Rcxc3 {[%clk 0:02:27.6]}
34... e5 {[%clk 0:03:37.8]} 35. Rc8+ {[%clk 0:02:20.7]} 35... Kg7 {[%clk
0:03:36.5]} 36. Rxf5 {[%clk 0:02:18.7]} 36... Qd7 {[%clk 0:03:32]} 0-1

[Event "Live Chess"]
[Site "Chess.com"]
[Date "2024.06.01"]
[Round "-"]
[White "MaximKovalenko83"]
[Black "booktrunk"]
[Result "1-0"]
[WhiteElo "2240"]
[BlackElo "1388"]
[TimeControl "300"]
[EndTime "13:09:39 PDT"]
[Termination "MaximKovalenko83 won by resignation"]

1. d4 {[%clk 0:04:57.5]} 1... e6 {[%clk 0:04:57.1]} 2. Nf3 {[%clk 0:04:52]} 2...
Nf6 {[%clk 0:04:52.2]} 3. g3 {[%clk 0:04:51.3]} 3... b6 {[%clk 0:04:49.6]} 4.
Bg2 {[%clk 0:04:50.7]} 4... Bb7 {[%clk 0:04:48.9]} 5. O-O {[%clk 0:04:50.3]}
5... Bb4 {[%clk 0:04:45.1]} 6. c3 {[%clk 0:04:48.9]} 6... Bd6 {[%clk 0:04:41]}
7. c4 {[%clk 0:04:43.5]} 7... O-O {[%clk 0:04:37.5]} 8. Nc3 {[%clk 0:04:42.3]}
8... c5 {[%clk 0:04:29.4]} 9. d5 {[%clk 0:04:40.3]} 9... exd5 {[%clk 0:04:28]}
10. cxd5 {[%clk 0:04:39.2]} 10... Re8 {[%clk 0:04:21.2]} 11. Re1 {[%clk
0:04:37.4]} 11... Ne4 {[%clk 0:04:17.2]} 12. Nd2 {[%clk 0:04:24.7]} 12... Nxc3
{[%clk 0:04:09.7]} 13. bxc3 {[%clk 0:04:24.6]} 13... Re7 {[%clk 0:04:04.8]} 14.
e4 {[%clk 0:04:17.6]} 14... Qf8 {[%clk 0:04:01.4]} 15. Nc4 {[%clk 0:04:15.6]}
15... Be5 {[%clk 0:03:58.9]} 16. Bd2 {[%clk 0:04:07.4]} 16... d6 {[%clk
0:03:52.6]} 17. f4 {[%clk 0:04:03.9]} 17... Bf6 {[%clk 0:03:46.2]} 18. Nxd6
{[%clk 0:04:01.5]} 18... Ba6 {[%clk 0:03:44.6]} 19. e5 {[%clk 0:03:56.5]} 19...
Bxe5 {[%clk 0:03:43.3]} 20. fxe5 {[%clk 0:03:55.6]} 20... Nd7 {[%clk 0:03:40.9]}
21. Bf4 {[%clk 0:03:44.7]} 21... h6 {[%clk 0:03:38.3]} 22. Nf5 {[%clk
0:03:37.7]} 22... Ree8 {[%clk 0:03:34]} 23. Qg4 {[%clk 0:03:32.1]} 23... g5
{[%clk 0:03:30.5]} 24. h4 {[%clk 0:03:25.3]} 24... Kh7 {[%clk 0:03:24.2]} 25.
hxg5 {[%clk 0:03:23.8]} 25... Qg8 {[%clk 0:03:17.1]} 26. Nxh6 {[%clk 0:03:08.4]}
26... Qg6 {[%clk 0:03:14.8]} 27. Be4 {[%clk 0:03:06.5]} 1-0

[Event "Live Chess"]
[Site "Chess.com"]
[Date "2024.06.01"]
[Round "-"]
[White "GEMdzq"]
[Black "Kyrylo7770"]
[Result "1-0"]
[WhiteElo "2266"]
[BlackElo "1669"]
[TimeControl "300"]
[EndTime "13:09:54 PDT"]
[Termination "GEMdzq won by resignation"]

1. e4 {[%clk 0:04:58.1]} 1... c6 {[%clk 0:04:53.4]} 2. d4 {[%clk 0:04:56.5]}
2... d5 {[%clk 0:04:53]} 3. e5 {[%clk 0:04:55.3]} 3... Bf5 {[%clk 0:04:52.4]} 4.
h4 {[%clk 0:04:51.9]} 4... h5 {[%clk 0:04:51.4]} 5. c4 {[%clk 0:04:50.4]} 5...
e6 {[%clk 0:04:50.8]} 6. Nc3 {[%clk 0:04:48.6]} 6... Bb4 {[%clk 0:04:49.3]} 7.
Bd3 {[%clk 0:04:47.4]} 7... Bxc3+ {[%clk 0:04:48.4]} 8. bxc3 {[%clk 0:04:45.9]}
8... Bg4 {[%clk 0:04:47.4]} 9. Qb3 {[%clk 0:04:41.6]} 9... b6 {[%clk 0:04:45.9]}
10. cxd5 {[%clk 0:04:26.3]} 10... exd5 {[%clk 0:04:44.6]} 11. Ne2 {[%clk
0:04:21.5]} 11... Ne7 {[%clk 0:04:43.1]} 12. Bg5 {[%clk 0:04:18]} 12... O-O
{[%clk 0:04:39.5]} 13. O-O {[%clk 0:04:16.3]} 13... Qd7 {[%clk 0:04:33.6]} 14.
Bxe7 {[%clk 0:04:13]} 14... Qxe7 {[%clk 0:04:32.6]} 15. g3 {[%clk 0:04:04.3]}
15... Bh3 {[%clk 0:04:31.7]} 16. Rfe1 {[%clk 0:04:03.2]} 16... Qe6 {[%clk
0:04:30.4]} 17. Nf4 {[%clk 0:04:01.9]} 17... Qg4 {[%clk 0:04:27.7]} 18. Be2
{[%clk 0:04:00]} 18... Qf5 {[%clk 0:04:26]} 19. Nxh3 {[%clk 0:03:52.2]} 19...
Qxh3 {[%clk 0:04:24.9]} 20. Bxh5 {[%clk 0:03:51.2]} 20... g6 {[%clk 0:04:23.3]}
21. Bf3 {[%clk 0:03:49.4]} 21... Kg7 {[%clk 0:04:22.6]} 22. Bg2 {[%clk 0:03:48]}
22... Qg4 {[%clk 0:04:21.4]} 23. Qd1 {[%clk 0:03:42.6]} 23... Qf5 {[%clk
0:04:19]} 24. Rc1 {[%clk 0:03:35.4]} 24... g5 {[%clk 0:04:09.7]} 25. Qc2 {[%clk
0:03:27.9]} 25... Qg4 {[%clk 0:04:07.7]} 26. Qe2 {[%clk 0:03:26.5]} 26... Qf5
{[%clk 0:04:05.4]} 27. h5 {[%clk 0:03:16.3]} 27... Rh8 {[%clk 0:04:03.9]} 28.
Bf3 {[%clk 0:03:12.5]} 28... Nd7 {[%clk 0:03:59.3]} 29. Bg4 {[%clk 0:03:11.6]}
29... Qe4 {[%clk 0:03:35.4]} 30. Qxe4 {[%clk 0:03:10]} 30... dxe4 {[%clk
0:03:34.7]} 31. Bxd7 {[%clk 0:03:09.7]} 31... Rxh5 {[%clk 0:03:34]} 32. Bxc6
{[%clk 0:03:08.2]} 32... Rah8 {[%clk 0:03:33.3]} 33. Bxe4 {[%clk 0:03:07.3]}
33... g4 {[%clk 0:03:28.9]} 34. Bg2 {[%clk 0:03:04.9]} 34... a5 {[%clk
0:03:25.7]} 35. d5 {[%clk 0:03:03.5]} 35... Rc8 {[%clk 0:03:23.7]} 36. d6 {[%clk
0:02:58.9]} 1-0

[Event "Live Chess"]
[Site "Chess.com"]
[Date "2024.06.01"]
[Round "-"]
[White "Eva3337"]
[Black "vincents82"]
[Result "0-1"]
[WhiteElo "1153"]
[BlackElo "2095"]
[TimeControl "300"]
[EndTime "13:09:59 PDT"]
[Termination "vincents82 won by resignation"]

1. e4 {[%clk 0:04:56.8]} 1... d5 {[%clk 0:04:57.7]} 2. e5 {[%clk 0:04:53.6]}
2... c5 {[%clk 0:04:51.9]} 3. c3 {[%clk 0:04:52]} 3... Nc6 {[%clk 0:04:51.4]} 4.
d4 {[%clk 0:04:50.9]} 4... Bf5 {[%clk 0:04:49.2]} 5. Nf3 {[%clk 0:04:41.1]} 5...
e6 {[%clk 0:04:47.5]} 6. Nh4 {[%clk 0:04:39.7]} 6... Bg6 {[%clk 0:04:44.3]} 7.
Nxg6 {[%clk 0:04:38]} 7... hxg6 {[%clk 0:04:43]} 8. Nd2 {[%clk 0:04:29.9]} 8...
cxd4 {[%clk 0:04:40.8]} 9. cxd4 {[%clk 0:04:28]} 9... Nxd4 {[%clk 0:04:40.2]}
10. Nf3 {[%clk 0:04:26.7]} 10... Nxf3+ {[%clk 0:04:37.9]} 11. Qxf3 {[%clk
0:04:22.1]} 11... Bb4+ {[%clk 0:04:36.9]} 12. Bd2 {[%clk 0:04:17.8]} 12... Bxd2+
{[%clk 0:04:35.4]} 13. Kxd2 {[%clk 0:04:16.4]} 13... Qa5+ {[%clk 0:04:34.1]} 14.
Kd1 {[%clk 0:04:13.5]} 14... Ne7 {[%clk 0:04:32.7]} 15. a4 {[%clk 0:04:02.4]}
15... O-O {[%clk 0:04:26.4]} 16. h4 {[%clk 0:03:53]} 16... Qb4 {[%clk
0:04:21.2]} 17. Ra2 {[%clk 0:03:48]} 17... Rac8 {[%clk 0:04:12.5]} 18. Bd3
{[%clk 0:03:44.2]} 18... Qb3+ {[%clk 0:04:09.9]} 19. Kd2 {[%clk 0:03:31.9]}
19... Qxa2 {[%clk 0:04:06.7]} 20. h5 {[%clk 0:03:26]} 20... Qxb2+ {[%clk
0:04:04.7]} 21. Ke3 {[%clk 0:03:24.3]} 21... Qxe5+ {[%clk 0:03:59.7]} 22. Kd2
{[%clk 0:03:22.6]} 22... Qb2+ {[%clk 0:03:39.3]} 23. Ke3 {[%clk 0:03:20.3]}
23... Nf5+ {[%clk 0:03:38.7]} 24. Bxf5 {[%clk 0:03:14.2]} 24... Qe5+ {[%clk
0:03:33.3]} 25. Kd2 {[%clk 0:03:01.6]} 25... Qxf5 {[%clk 0:03:31.3]} 26. Qe2
{[%clk 0:02:46.8]} 26... Rc2+ {[%clk 0:03:28.9]} 0-1

[Event "Live Chess"]
[Site "Chess.com"]
[Date "2024.06.01"]
[Round "-"]
[White "Duke_of_Bebington"]
[Black "defenderalist"]
[Result "1-0"]
[WhiteElo "1598"]
[BlackElo "1506"]
[TimeControl "300"]
[EndTime "13:10:07 PDT"]
[Termination "Duke_of_Bebington won by resignation"]

1. e4 {[%clk 0:04:57.1]} 1... c5 {[%clk 0:04:56.2]} 2. c3 {[%clk 0:04:54.2]}
2... d6 {[%clk 0:04:53.4]} 3. d4 {[%clk 0:04:53.1]} 3... cxd4 {[%clk 0:04:51.9]}
4. cxd4 {[%clk 0:04:53]} 4... Nf6 {[%clk 0:04:50.4]} 5. Nc3 {[%clk 0:04:48.7]}
5... Bg4 {[%clk 0:04:42]} 6. Be2 {[%clk 0:04:43.4]} 6... Bxe2 {[%clk 0:04:40.6]}
7. Ngxe2 {[%clk 0:04:43.3]} 7... Nc6 {[%clk 0:04:37.7]} 8. d5 {[%clk 0:04:40]}
8... Ne5 {[%clk 0:04:33.1]} 9. O-O {[%clk 0:04:32.7]} 9... g6 {[%clk 0:04:28.5]}
10. f4 {[%clk 0:04:31.3]} 10... Nc4 {[%clk 0:04:23.7]} 11. b3 {[%clk 0:04:30]}
11... Nb6 {[%clk 0:04:20.4]} 12. a4 {[%clk 0:04:17.8]} 12... Rc8 {[%clk
0:04:18.8]} 13. Bb2 {[%clk 0:04:15.4]} 13... a6 {[%clk 0:04:17.4]} 14. a5 {[%clk
0:04:13.5]} 14... Nbd7 {[%clk 0:04:10.6]} 15. Na4 {[%clk 0:04:07]} 15... Bg7
{[%clk 0:04:02]} 16. e5 {[%clk 0:04:04.7]} 16... dxe5 {[%clk 0:04:00.5]} 17.
fxe5 {[%clk 0:04:03.9]} 17... Ne4 {[%clk 0:03:51.9]} 18. e6 {[%clk 0:03:52.2]}
18... Ndc5 {[%clk 0:03:41.5]} 19. Bxg7 {[%clk 0:03:47.2]} 1-0

[Event "Live Chess"]
[Site "Chess.com"]
[Date "2024.06.01"]
[Round "-"]
[White "koekoekoe"]
[Black "mrsmarple1968"]
[Result "1-0"]
[WhiteElo "2048"]
[BlackElo "1757"]
[TimeControl "300"]
[EndTime "13:10:20 PDT"]
[Termination "koekoekoe won by resignation"]

1. d4 {[%clk 0:04:59.7]} 1... d5 {[%clk 0:04:57]} 2. Bf4 {[%clk 0:04:59.3]} 2...
c6 {[%clk 0:04:54.8]} 3. e3 {[%clk 0:04:58.8]} 3... e6 {[%clk 0:04:53.1]} 4. c4
{[%clk 0:04:58.3]} 4... Nf6 {[%clk 0:04:49.4]} 5. Nc3 {[%clk 0:04:57.9]} 5...
Be7 {[%clk 0:04:06.9]} 6. Nf3 {[%clk 0:04:51.9]} 6... b6 {[%clk 0:04:05.3]} 7.
h3 {[%clk 0:04:50.2]} 7... Bb7 {[%clk 0:03:59.9]} 8. Be2 {[%clk 0:04:41.7]} 8...
Nbd7 {[%clk 0:03:57.4]} 9. O-O {[%clk 0:04:39.5]} 9... O-O {[%clk 0:03:55.3]}
10. Rc1 {[%clk 0:04:36.7]} 10... a6 {[%clk 0:03:50.9]} 11. Qb3 {[%clk
0:04:34.5]} 11... Rb8 {[%clk 0:03:47.3]} 12. cxd5 {[%clk 0:04:27.4]} 12... exd5
{[%clk 0:03:40.9]} 13. Ne5 {[%clk 0:04:08.8]} 13... Rc8 {[%clk 0:03:34.4]} 14.
Na4 {[%clk 0:03:59.6]} 14... b5 {[%clk 0:03:15.4]} 15. Nc5 {[%clk 0:03:49.1]}
15... Nxc5 {[%clk 0:03:12.4]} 16. dxc5 {[%clk 0:03:45.2]} 16... a5 {[%clk
0:03:03.2]} 17. a4 {[%clk 0:03:33.2]} 17... b4 {[%clk 0:03:00.5]} 18. Bd3 {[%clk
0:03:15.5]} 18... h6 {[%clk 0:02:41]} 19. Qd1 {[%clk 0:03:14.7]} 19... Ne8
{[%clk 0:02:31.1]} 20. Qg4 {[%clk 0:02:55.1]} 20... Nf6 {[%clk 0:02:25.5]} 21.
Qe2 {[%clk 0:02:49.7]} 21... Re8 {[%clk 0:02:03.4]} 22. Ba6 {[%clk 0:02:47.8]}
22... Bxa6 {[%clk 0:01:45.2]} 23. Qxa6 {[%clk 0:02:47.7]} 23... g5 {[%clk
0:01:32.4]} 24. Bg3 {[%clk 0:02:40.4]} 24... Ne4 {[%clk 0:01:29.4]} 25. Bh2
{[%clk 0:02:19.7]} 25... Nxc5 {[%clk 0:01:19.7]} 26. Qa7 {[%clk 0:01:51.4]}
26... Bd6 {[%clk 0:01:04.3]} 27. Rxc5 {[%clk 0:01:38.7]} 27... Bxe5 {[%clk
0:00:52.7]} 28. Bxe5 {[%clk 0:01:31]} 28... Rxe5 {[%clk 0:00:49.2]} 29. Qa6
{[%clk 0:01:20.5]} 29... Ra8 {[%clk 0:00:29.1]} 30. Qxc6 {[%clk 0:01:17.4]}
30... d4 {[%clk 0:00:18.8]} 31. Rxe5 {[%clk 0:01:12.1]} 1-0

[Event "Live Chess"]
[Site "Chess.com"]
[Date "2024.06.01"]
[Round "-"]
[White "GwaryTek"]
[Black "aleksl1977"]
[Result "1-0"]
[WhiteElo "1959"]
[BlackElo "1323"]
[TimeControl "300"]
[EndTime "13:10:21 PDT"]
[Termination "GwaryTek won by resignation"]

1. d4 {[%clk 0:04:58.6]} 1... d5 {[%clk 0:04:57.8]} 2. c4 {[%clk 0:04:57]} 2...
c6 {[%clk 0:04:56.7]} 3. Nc3 {[%clk 0:04:55.2]} 3... Nf6 {[%clk 0:04:55.1]} 4.
Nf3 {[%clk 0:04:55.1]} 4... e6 {[%clk 0:04:54.1]} 5. Bg5 {[%clk 0:04:52]} 5...
Be7 {[%clk 0:04:53]} 6. Qc2 {[%clk 0:04:45.1]} 6... Nbd7 {[%clk 0:04:51.6]} 7.
e3 {[%clk 0:04:40.7]} 7... O-O {[%clk 0:04:48.1]} 8. Bd3 {[%clk 0:04:38.1]} 8...
dxc4 {[%clk 0:04:47]} 9. Bxc4 {[%clk 0:04:36.2]} 9... b5 {[%clk 0:04:46.1]} 10.
Bd3 {[%clk 0:04:33.6]} 10... a6 {[%clk 0:04:45.1]} 11. O-O {[%clk 0:04:25.4]}
11... Bb7 {[%clk 0:04:44.1]} 12. Ne4 {[%clk 0:04:24.5]} 12... c5 {[%clk
0:04:41.7]} 13. Nxc5 {[%clk 0:03:58.4]} 13... Nxc5 {[%clk 0:04:40]} 14. dxc5
{[%clk 0:03:57.4]} 14... Bxf3 {[%clk 0:04:04.3]} 15. gxf3 {[%clk 0:03:57.3]}
15... Rc8 {[%clk 0:04:03.3]} 16. b4 {[%clk 0:03:55]} 16... Nd5 {[%clk
0:03:54.3]} 17. Bxe7 {[%clk 0:03:45.3]} 17... Qxe7 {[%clk 0:03:51.6]} 18. a3
{[%clk 0:03:38.8]} 18... g6 {[%clk 0:03:49.7]} 19. Kh1 {[%clk 0:03:36]} 19...
Qf6 {[%clk 0:03:42.3]} 20. f4 {[%clk 0:03:27.8]} 20... Qh4 {[%clk 0:03:29.3]}
21. Rg1 {[%clk 0:03:25.6]} 21... Nf6 {[%clk 0:03:26.2]} 22. Qe2 {[%clk
0:03:12.9]} 22... Rfd8 {[%clk 0:03:22.2]} 23. Rad1 {[%clk 0:03:11]} 23... Rd7
{[%clk 0:03:17.1]} 24. Qf3 {[%clk 0:02:47.7]} 24... Rcd8 {[%clk 0:03:13]} 25.
Be2 {[%clk 0:02:45.6]} 25... Rd2 {[%clk 0:03:04.3]} 26. Rxd2 {[%clk 0:02:36.3]}
26... Rxd2 {[%clk 0:03:02.6]} 27. Rd1 {[%clk 0:02:35.7]} 27... Rxd1+ {[%clk
0:02:54.8]} 28. Bxd1 {[%clk 0:02:34.2]} 28... Nd5 {[%clk 0:02:53.2]} 29. Bb3
{[%clk 0:02:18.8]} 29... Nc3 {[%clk 0:02:40.7]} 30. c6 {[%clk 0:02:15.8]} 30...
Qd8 {[%clk 0:02:37.5]} 31. e4 {[%clk 0:02:05.2]} 31... Na4 {[%clk 0:02:27.9]}
32. Bxa4 {[%clk 0:01:59.3]} 32... bxa4 {[%clk 0:02:26.9]} 33. Qc3 {[%clk
0:01:56.3]} 33... Qc7 {[%clk 0:02:25.7]} 34. Kg2 {[%clk 0:01:51.7]} 34... Kf8
{[%clk 0:02:24.7]} 35. Kf3 {[%clk 0:01:50.9]} 35... Ke7 {[%clk 0:02:22.8]} 36.
e5 {[%clk 0:01:48.7]} 36... h5 {[%clk 0:02:15.1]} 37. Qc5+ {[%clk 0:01:46.3]}
37... Ke8 {[%clk 0:02:11.4]} 38. Qd6 {[%clk 0:01:42.8]} 38... Qc8 {[%clk
0:01:56.9]} 39. Ke4 {[%clk 0:01:30.3]} 39... Qd8 {[%clk 0:01:52.9]} 40. Kd4
{[%clk 0:01:21.7]} 40... h4 {[%clk 0:01:46.8]} 41. Kc5 {[%clk 0:01:16.3]} 41...
h3 {[%clk 0:01:35.3]} 42. c7 {[%clk 0:01:10.6]} 42... Qd7 {[%clk 0:01:25.7]} 43.
Qxd7+ {[%clk 0:01:06.5]} 43... Kxd7 {[%clk 0:01:24.7]} 44. Kb6 {[%clk
0:01:05.7]} 44... Kc8 {[%clk 0:01:23.6]} 45. Kc6 {[%clk 0:00:55.6]} 45... a5
{[%clk 0:01:10.3]} 46. b5 {[%clk 0:00:52.3]} 46... g5 {[%clk 0:01:07.5]} 47. b6
{[%clk 0:00:50.8]} 1-0

[Event "Live Chess"]
[Site "Chess.com"]
[Date "2024.06.01"]
[Round "-"]
[White "grillage"]
[Black "ProfPoisson"]
[Result "1-0"]
[WhiteElo "1869"]
[BlackElo "1277"]
[TimeControl "300"]
[EndTime "13:10:21 PDT"]
[Termination "grillage won by resignation"]

1. d4 {[%clk 0:04:56.6]} 1... e6 {[%clk 0:04:58]} 2. Nf3 {[%clk 0:04:56]} 2...
f5 {[%clk 0:04:56.3]} 3. g3 {[%clk 0:04:49.7]} 3... Nf6 {[%clk 0:04:54.8]} 4.
Bg2 {[%clk 0:04:48.8]} 4... Be7 {[%clk 0:03:50.5]} 5. O-O {[%clk 0:04:46.7]}
5... O-O {[%clk 0:03:45.8]} 6. c4 {[%clk 0:04:39.6]} 6... d6 {[%clk 0:03:36.5]}
7. Nc3 {[%clk 0:04:36.6]} 7... Ne4 {[%clk 0:03:35.1]} 8. Qc2 {[%clk 0:04:32.1]}
8... Nxc3 {[%clk 0:03:32.6]} 9. Qxc3 {[%clk 0:04:30.6]} 9... a5 {[%clk
0:03:31.7]} 10. b3 {[%clk 0:04:28.1]} 10... Bf6 {[%clk 0:03:30.1]} 11. Bb2
{[%clk 0:04:25.8]} 11... c5 {[%clk 0:03:23.8]} 12. Qd2 {[%clk 0:04:24.3]} 12...
Nc6 {[%clk 0:03:14.5]} 13. Rad1 {[%clk 0:04:17.3]} 13... Nb4 {[%clk 0:03:10.5]}
14. dxc5 {[%clk 0:04:11.1]} 14... Bxb2 {[%clk 0:03:01.7]} 15. Qxb2 {[%clk
0:04:08.5]} 15... Qf6 {[%clk 0:02:37.6]} 16. Qxf6 {[%clk 0:04:05.6]} 16... Rxf6
{[%clk 0:02:34.9]} 17. cxd6 {[%clk 0:04:05.2]} 17... Bd7 {[%clk 0:02:32.6]} 18.
Ne5 {[%clk 0:03:59.8]} 18... Rd8 {[%clk 0:02:22.7]} 19. Bxb7 {[%clk 0:03:55]}
19... Nxa2 {[%clk 0:02:18.8]} 20. c5 {[%clk 0:03:51.6]} 20... Nc3 {[%clk
0:02:16.7]} 21. Rd3 {[%clk 0:03:48.1]} 21... Nd5 {[%clk 0:02:13.6]} 22. Bxd5
{[%clk 0:03:43.8]} 22... exd5 {[%clk 0:02:10.6]} 23. Rxd5 {[%clk 0:03:43.3]}
23... f4 {[%clk 0:01:59.8]} 24. Ra1 {[%clk 0:03:32.2]} 24... fxg3 {[%clk
0:01:57]} 25. hxg3 {[%clk 0:03:31]} 25... Re6 {[%clk 0:01:48.5]} 26. Rxa5 {[%clk
0:03:21]} 26... Rb8 {[%clk 0:01:31.3]} 27. Nxd7 {[%clk 0:03:17.6]} 27... Rxb3
{[%clk 0:01:29.8]} 28. Ne5 {[%clk 0:03:08.5]} 28... Rb2 {[%clk 0:01:24]} 29.
Ra8+ {[%clk 0:03:07.4]} 1-0